{"text_format":"1","workbook":"xlsx","n_sheets":1,"sheets":["PE Bolle Bodem putstaat"],"not_rendered":{"charts":0,"images":6,"macros":1,"external_links":0,"defined_names":26,"comments":0,"pivot_tables":0},"unopened":[],"bounds":{"document_bytes":16777216,"sheet_cells":100000,"rows_first":2000,"rows_last":500,"rows_between":2000,"halvings":0,"cell_chars":16384,"cell_head_chars":4096},"cells_cut":0,"cells_raw":0,"read":"whole","date_system":"1900"}

{"sheet":"PE Bolle Bodem putstaat","index":0,"n_rows":144,"n_cols":72,"rows_kept":144,"cut":false,"hidden":false,"merged":[[1,37,1,39],[6,21,10,39],[8,3,8,13],[9,3,9,13],[10,3,10,13],[2,3,2,4],[3,3,3,13],[0,11,1,36],[5,3,5,9],[5,12,5,13],[6,3,6,7],[6,9,6,13],[7,3,7,7],[7,9,7,13],[24,35,24,39],[24,10,24,14],[24,15,24,19],[24,20,24,24],[24,25,24,29],[24,30,24,34]]}
[null,null,null,null,null,null,null,null,null,null,null,"PE Bolle Bodem Inspectieput  600 - 800 - 1000 CONFORM EN-13598-2",null,null,null,null,null,null,null,null,null,null,null,null,null,null,null,null,null,null,null,null,null,null,null,null,null,null,null,null,null,null,null,null,null,null,null,"Ja"]
[null,null,null,null,null,null,null,null,null,null,null,null,null,null,null,null,null,null,null,null,null,null,null,null,null,null,null,null,null,null,null,null,null,null,null,null,null,"blad 1",null,null,null,null,null,null,null,null,null,"Nee"]
[null,null,"Offerte nr",null,null,null,null,null,null,"Datum",{"$f":"TODAY()","v":"2024-01-24"},null,"Versie","23.10"]
[null,null," Werk:"]
[]
[null,null,"Opdrachtgever:",null,null,null,null,null,null,null,null,"Debiteurnr.",null,null,null,null,null,null,null,null,null,"Opmerkingen:"]
[null,null,"Contactpersoon:",null,null,null,null,null,"Uitvoerder:"]
[null,null,"Tel.",null,null,null,null,null,"Tel. Uitv.:"]
[null,null,"Factuur adres:"]
[null,null,"Ordernr.:"]
[null,null,"Verzendadres:"]
[]
[null,"Putdiameter",null,null,null,null,null,null,null,null,null,null,null,"Put afdekking",null,null,null,null,"Aansluitrichtingen:",null,null,null,"Aansluitingstype:",null,null,null,null,null,null,null,null,"PE put hoogte:"]
[null,{"$f":"COUNTIF($C$27:$C$66,C14)","v":0},600,"mm",null,null,null,null,null,null,null,null,null,null,"Betonplaat",200,"mm",null,"Uitgaand = aansluiting 1 = 0°",null,null,null,"Spie",":  Gladde Spie",null,null,null,null,null,null,null,"1: Hoogte put:"]
[null,0,800,"mm",null,null,null,null,null,null,null,null,null,null,"Betonplaat",120,"mm",null,null,null,null,null,"Mof",":  PVC Manchetmof",null,null,null,null,null,null,null,"  = maaiveld - binnen onderkant put - afdekking"]
[null,0,1000,"mm",null,null,null,null,null,null,null,null,null,null,"Betonplaat",0,"mm",null,null,null,null,null,"Drain",":  Drainageklikmof",null,null,null,null,null,null,null,"2: Aansluithoogte: "]
[null,null,null,null,null,null,null,null,null,null,null,null,null,null,null,null,null,null,null,null,null,null,"Duiker",":  Duikerbuis Spie",null,null,null,null,null,null,null,"  = binnen onderkant buis - bovenkant put."]
[null,null,null,null,null,null,null,null,null,null,null,null,null,null,"Putrand ",240,"mm",null,null,null,null,null,"PE Druk",":  Pe Spie voor druktoep. tot Ø90=SDR11 >Ø90=SDR17",null,null,null,null,null,null,null,"3: Hoogte betonrand afdekking:"]
[null,null,null,null,null,null,null,null,null,null,null,null,null,null,"Putrand ",170,"mm",null,null,null,null,null,"Pragma",":  PP Pragma OD Mof",null,null,null,null,null,null,null," = hoogte putdeksel + hoogte betonrand - overlap (halve hoogte betonrand)"]
[null,null,null,null,null,null,null,null,null,null,null,null,null,null,"Putrand ",120,"mm"]
[null,"maatvoering in mm",null,null,null,null,null,null,null,null,null,null,null,null,"Putrand ",0,"mm"]
[]
[null,null,",= invul veld",null,null,null,null,null,null,null,null,null,null,null,"Stellaag",0,"mm"]
[]
["Leverings","Put","Put","Maai-","Zand-","Beton","Put","Hoogte",null,null,"Aansluiting 1 = UIT = 0°",null,null,null,null,"Aansluiting 2 = IN",null,null,null,null,"Aansluiting 3 = IN",null,null,null,null,"Aansluiting 4 = IN",null,null,null,null,"Aansluiting 5 = IN",null,null,null,null,"Aansluiting 6 = IN"]
["datum","nr.","Diameter","Veld","Vang","Rand","Rand",null,null,null,"type","Diam.","bob","hoogte","richting","type","Diam.","bob","hoogte","richting","type","Diam.","bob","hoogte","richting","type","Diam.","bob","hoogte","richting","type","Diam.","bob","hoogte","richting","type","Diam.","bob","hoogte","richting"]
[null,null,null,null,null,0,0,{"$f":"IF($C27>0,(MAX(N27,S27,X27,AC27,AH27,AM27)+E27),\"\")","v":""},null,null,null,null,null,{"$f":"IF($B27=\"\",\"\",($D27-$M27-(($F27/2)+$G27+$P$23)))","v":""},{"$f":"IF($B27=\"\",\"\",0)","v":""},null,null,null,{"$f":"IF($B27=\"\",\"\",($D27-$R27-(($F27/2)+$G27+$P$23)))","v":""},null,null,null,null,{"$f":"IF(B27=\"\",\"\",($D27-$W27-(($F27/2)+$G27+$P$23)))","v":""},null,null,null,null,{"$f":"IF(B27=\"\",\"\",($D27-$AB27-(($F27/2)+$G27+$P$23)))","v":""},null,null,null,null,{"$f":"IF(B27=\"\",\"\",($D27-$AG27-(($F27/2)+$G27+$P$23)))","v":""},null,null,null,null,{"$f":"IF(B27=\"\",\"\",($D27-$AL27-(($F27/2)+$G27+$P$23)))","v":""}]
[null,null,null,null,null,0,0,{"$f":"IF($C28>0,(MAX(N28,S28,X28,AC28,AH28,AM28)+E28),\"\")","v":""},null,null,null,null,null,{"$f":"IF($B28=\"\",\"\",($D28-$M28-(($F28/2)+$G28+$P$23)))","v":""},"",null,null,null,{"$f":"IF($B28=\"\",\"\",($D28-$R28-(($F28/2)+$G28+$P$23)))","v":""},null,null,null,null,{"$f":"IF(B28=\"\",\"\",($D28-$W28-(($F28/2)+$G28+$P$23)))","v":""},null,null,null,null,{"$f":"IF(B28=\"\",\"\",($D28-$AB28-(($F28/2)+$G28+$P$23)))","v":""},null,null,null,null,{"$f":"IF(B28=\"\",\"\",($D28-$AG28-(($F28/2)+$G28+$P$23)))","v":""},null,null,null,null,{"$f":"IF(B28=\"\",\"\",($D28-$AL28-(($F28/2)+$G28+$P$23)))","v":""}]
[null,null,null,null,null,0,0,"",null,null,null,null,null,"","",null,null,null,"",null,null,null,null,"",null,null,null,null,"",null,null,null,null,"",null,null,null,null,""]
[null,null,null,null,null,0,0,"",null,null,null,null,null,"","",null,null,null,"",null,null,null,null,"",null,null,null,null,"",null,null,null,null,"",null,null,null,null,""]
[null,null,null,null,null,0,0,"",null,null,null,null,null,"","",null,null,null,"",null,null,null,null,"",null,null,null,null,"",null,null,null,null,"",null,null,null,null,""]
[null,null,null,null,null,0,0,"",null,null,null,null,null,"","",null,null,null,"",null,null,null,null,"",null,null,null,null,"",null,null,null,null,"",null,null,null,null,""]
[null,null,null,null,null,0,0,"",null,null,null,null,null,"","",null,null,null,"",null,null,null,null,"",null,null,null,null,"",null,null,null,null,"",null,null,null,null,""]
[null,null,null,null,null,0,0,"",null,null,null,null,null,"","",null,null,null,"",null,null,null,null,"",null,null,null,null,"",null,null,null,null,"",null,null,null,null,""]
[null,null,null,null,null,0,0,"",null,null,null,null,null,"","",null,null,null,"",null,null,null,null,"",null,null,null,null,"",null,null,null,null,"",null,null,null,null,""]
[null,null,null,null,null,0,0,"",null,null,null,null,null,"","",null,null,null,"",null,null,null,null,"",null,null,null,null,"",null,null,null,null,"",null,null,null,null,""]
[null,null,null,null,null,0,0,"",null,null,null,null,null,"","",null,null,null,"",null,null,null,null,"",null,null,null,null,"",null,null,null,null,"",null,null,null,null,""]
[null,null,null,null,null,0,0,"",null,null,null,null,null,"","",null,null,null,"",null,null,null,null,"",null,null,null,null,"",null,null,null,null,"",null,null,null,null,""]
[null,null,null,null,null,0,0,"",null,null,null,null,null,"","",null,null,null,"",null,null,null,null,"",null,null,null,null,"",null,null,null,null,"",null,null,null,null,""]
[null,null,null,null,null,0,0,"",null,null,null,null,null,"","",null,null,null,"",null,null,null,null,"",null,null,null,null,"",null,null,null,null,"",null,null,null,null,""]
[null,null,null,null,null,0,0,"",null,null,null,null,null,"","",null,null,null,"",null,null,null,null,"",null,null,null,null,"",null,null,null,null,"",null,null,null,null,""]
[null,null,null,null,null,0,0,"",null,null,null,null,null,"","",null,null,null,"",null,null,null,null,"",null,null,null,null,"",null,null,null,null,"",null,null,null,null,""]
[null,null,null,null,null,0,0,"",null,null,null,null,null,"","",null,null,null,"",null,null,null,null,"",null,null,null,null,"",null,null,null,null,"",null,null,null,null,""]
[null,null,null,null,null,0,0,"",null,null,null,null,null,"","",null,null,null,"",null,null,null,null,"",null,null,null,null,"",null,null,null,null,"",null,null,null,null,""]
[null,null,null,null,null,0,0,"",null,null,null,null,null,"","",null,null,null,"",null,null,null,null,"",null,null,null,null,"",null,null,null,null,"",null,null,null,null,""]
[null,null,null,null,null,0,0,"",null,null,null,null,null,"","",null,null,null,"",null,null,null,null,"",null,null,null,null,"",null,null,null,null,"",null,null,null,null,""]
[null,null,null,null,null,0,0,"",null,null,null,null,null,"","",null,null,null,"",null,null,null,null,"",null,null,null,null,"",null,null,null,null,"",null,null,null,null,""]
[null,null,null,null,null,0,0,"",null,null,null,null,null,"","",null,null,null,"",null,null,null,null,"",null,null,null,null,"",null,null,null,null,"",null,null,null,null,""]
[null,null,null,null,null,0,0,"",null,null,null,null,null,"","",null,null,null,"",null,null,null,null,"",null,null,null,null,"",null,null,null,null,"",null,null,null,null,""]
[null,null,null,null,null,0,0,"",null,null,null,null,null,"","",null,null,null,"",null,null,null,null,"",null,null,null,null,"",null,null,null,null,"",null,null,null,null,""]
[null,null,null,null,null,0,0,"",null,null,null,null,null,"","",null,null,null,"",null,null,null,null,"",null,null,null,null,"",null,null,null,null,"",null,null,null,null,""]
[null,null,null,null,null,0,0,"",null,null,null,null,null,"","",null,null,null,"",null,null,null,null,"",null,null,null,null,"",null,null,null,null,"",null,null,null,null,""]
[null,null,null,null,null,0,0,"",null,null,null,null,null,"","",null,null,null,"",null,null,null,null,"",null,null,null,null,"",null,null,null,null,"",null,null,null,null,""]
[null,null,null,null,null,0,0,"",null,null,null,null,null,"","",null,null,null,"",null,null,null,null,"",null,null,null,null,"",null,null,null,null,"",null,null,null,null,""]
[null,null,null,null,null,0,0,"",null,null,null,null,null,"","",null,null,null,"",null,null,null,null,"",null,null,null,null,"",null,null,null,null,"",null,null,null,null,""]
[null,null,null,null,null,0,0,"",null,null,null,null,null,"","",null,null,null,"",null,null,null,null,"",null,null,null,null,"",null,null,null,null,"",null,null,null,null,""]
[null,null,null,null,null,0,0,"",null,null,null,null,null,"","",null,null,null,"",null,null,null,null,"",null,null,null,null,"",null,null,null,null,"",null,null,null,null,""]
[null,null,null,null,null,0,0,"",null,null,null,null,null,"","",null,null,null,"",null,null,null,null,"",null,null,null,null,"",null,null,null,null,"",null,null,null,null,""]
[null,null,null,null,null,0,0,"",null,null,null,null,null,"","",null,null,null,"",null,null,null,null,"",null,null,null,null,"",null,null,null,null,"",null,null,null,null,""]
[null,null,null,null,null,0,0,"",null,null,null,null,null,"","",null,null,null,"",null,null,null,null,"",null,null,null,null,"",null,null,null,null,"",null,null,null,null,""]
[null,null,null,null,null,0,0,"",null,null,null,null,null,"","",null,null,null,"",null,null,null,null,"",null,null,null,null,"",null,null,null,null,"",null,null,null,null,""]
[null,null,null,null,null,0,0,"",null,null,null,null,null,"","",null,null,null,"",null,null,null,null,"",null,null,null,null,"",null,null,null,null,"",null,null,null,null,""]
[null,null,null,null,null,0,0,"",null,null,null,null,null,"","",null,null,null,"",null,null,null,null,"",null,null,null,null,"",null,null,null,null,"",null,null,null,null,""]
[null,null,null,null,null,0,0,"",null,null,null,null,null,"","",null,null,null,"",null,null,null,null,"",null,null,null,null,"",null,null,null,null,"",null,null,null,null,""]
[null,null,null,null,null,0,0,"",null,null,null,null,null,"","",null,null,null,"",null,null,null,null,"",null,null,null,null,"",null,null,null,null,"",null,null,null,null,""]
[null,null,null,null,null,0,0,"",null,null,null,null,null,"","",null,null,null,"",null,null,null,null,"",null,null,null,null,"",null,null,null,null,"",null,null,null,null,""]
[]
[]
[null,null,null,null,"Betonranden 900*900 h.120mm + rubberenring",{"$f":"SUMIF(F27:F66,120)/120","v":0},"st."]
[null,null,null,null,"Betonranden 900*900 h.200mm + rubberenring",{"$f":"SUMIF(F27:F66,200)/200","v":0},"st."]
[null,null,null,null,"Putrand & GY deksel hoogte 240mm",{"$f":"SUMIF(G27:G66,240)/240","v":0},"st."]
[null,null,null,null,"Putrand & GY deksel hoogte 170mm",{"$f":"SUMIF(G27:G66,170)/170","v":0},"st."]
[null,null,null,null,"Putrand & GY deksel hoogte 120mm",{"$f":"SUMIF(G27:G66,120)/120","v":0},"st."]
[]
[]
[]
[]
[null,null,null,null,null,null,null,null,null,null,null,null,null,{"$f":"IF($B78=\"\",\"\",($D78-$M78-(($F78/2)+$G78+$P$23)))","v":""},{"$f":"IF($B78=\"\",\"\",0)","v":""},null,null,null,{"$f":"IF($B78=\"\",\"\",($D78-$R78-(($F78/2)+$G78+$P$23)))","v":""},null,null,null,null,{"$f":"IF(B78=\"\",\"\",($D78-$W78-(($F78/2)+$G78+$P$23)))","v":""},null,null,null,null,{"$f":"IF(B78=\"\",\"\",($D78-$AB78-(($F78/2)+$G78+$P$23)))","v":""},null,null,null,null,{"$f":"IF(B78=\"\",\"\",($D78-$AG78-(($F78/2)+$G78+$P$23)))","v":""},null,null,null,null,{"$f":"IF(B78=\"\",\"\",($D78-$AL78-(($F78/2)+$G78+$P$23)))","v":""}]
[]
[]
[]
[null,null,null,null,null,null,null,null,null,null,null,null,null,null,null,null,null,null,null,null,null,null,null,null,null,null,null,null,null,null,null,null,null,null,null,null,null,null,null,null,null,null,null,null,null,null,null,null,null,null,null,null,null,null,null,null,null,null,null,null,null,null,null,null,null,"PE Bolle Bodem"]
[null,null,null,null,null,null,null,null,null,null,null,null,null,null,null,null,null,null,null,null,null,null,null,null,null,null,null,null,null,null,null,null,null,null,null,null,null,null,null,null,null,null,null,null,null,null,null,null,null,null,null,null,null,null,null,null,null,null,null,null,null,null,null,null,null,null,null,"Betonplaat"]
[null,null,null,null,null,null,null,null,null,null,null,null,null,null,null,null,null,null,null,null,null,null,null,null,null,null,null,null,null,null,null,null,null,null,null,null,null,null,null,null,null,null,null,null,null,null,null,null,null,null,null,null,null,null,null,null,null,null,null,1,null,null,null,null,null,null,null,0,null,200,null,120]
[null,null,null,null,null,null,null,null,null,null,null,null,null,null,null,null,null,null,null,null,null,null,null,null,null,null,null,null,null,null,null,null,null,null,null,null,null,null,null,null,null,null,null,null,null,null,null,null,null,null,null,null,null,null,null,null,null,null,null,2,null,null,null,null,null,600,40,0,200,600,120,600]
[null,null,null,null,null,null,null,null,null,null,null,null,null,null,null,null,null,null,null,null,null,null,null,null,null,null,null,null,null,null,null,null,null,null,null,null,null,null,null,null,null,null,null,null,null,null,null,null,null,null,null,null,null,null,null,null,null,null,null,3,null,null,null,null,null,600,50,0,200,600]
[null,null,null,null,null,null,null,null,null,null,null,null,null,null,null,null,null,null,null,null,null,null,null,null,null,null,null,null,null,null,null,null,null,null,null,null,null,null,null,null,null,null,null,null,null,null,null,null,null,null,null,null,null,null,null,null,null,null,null,4,null,null,null,null,null,600,60,0,200,600]
[null,null,null,null,null,null,null,null,null,null,null,null,null,null,null,null,null,null,null,null,null,null,null,null,null,null,null,null,null,null,null,null,null,null,null,null,null,null,null,null,null,null,null,null,null,null,null,null,null,null,null,null,null,null,null,null,null,null,null,5,null,null,null,null,null,600,63,0,200,600]
[null,null,null,null,null,null,null,null,null,null,null,null,null,null,null,null,null,null,null,null,null,null,null,null,null,null,null,null,null,null,null,null,null,null,null,null,null,null,null,null,null,null,null,null,null,null,null,null,null,null,null,null,null,null,null,null,null,null,null,6,null,null,null,null,null,600,65,0,200,600,120,600]
[null,null,null,null,null,null,null,null,null,null,null,null,null,null,null,null,null,null,null,null,null,null,null,null,null,null,null,null,null,null,null,null,null,null,null,null,null,null,null,null,null,null,null,null,null,null,null,null,null,null,null,null,null,null,null,null,null,null,null,7,null,null,null,null,null,600,75,0,200,600,120,600]
[null,null,null,null,null,null,null,null,null,null,null,null,null,null,null,null,null,null,null,null,null,null,null,null,null,null,null,null,null,null,null,null,null,null,null,null,null,null,null,null,null,null,null,null,null,null,null,null,null,null,null,null,null,null,null,null,null,null,null,8,null,null,null,null,null,600,80,0,200,600,120,600]
[null,null,null,null,null,null,null,null,null,null,null,null,null,null,null,null,null,null,null,null,null,null,null,null,null,null,null,null,null,null,null,null,null,null,null,null,null,null,null,null,null,null,null,null,null,null,null,null,null,null,null,null,null,null,null,null,null,null,null,9,null,null,null,null,null,600,90,0,200,600,120,600]
[null,null,null,null,null,null,null,null,null,null,null,null,null,null,null,null,null,null,null,null,null,null,null,null,null,null,null,null,null,null,null,null,null,null,null,null,null,null,null,null,null,null,null,null,null,null,null,null,null,null,null,null,null,null,null,null,null,null,null,10,null,null,null,null,null,600,100,0,200,600,120,600]
[null,null,null,null,null,null,null,null,null,null,null,null,null,null,null,null,null,null,null,null,null,null,null,null,null,null,null,null,null,null,null,null,null,null,null,null,null,null,null,null,null,null,null,null,null,null,null,null,null,null,null,null,null,null,null,null,null,null,null,11,null,null,null,null,null,600,110,0,200,600,120,600]
[null,null,null,null,null,null,null,null,null,null,null,null,null,null,null,null,null,null,null,null,null,null,null,null,null,null,null,null,null,null,null,null,null,null,null,null,null,null,null,null,null,null,null,null,null,null,null,null,null,null,null,null,null,null,null,null,null,null,null,12,null,null,null,null,null,600,125,0,200,600,120,600]
[null,null,null,null,null,null,null,null,null,null,null,null,null,null,null,null,null,null,null,null,null,null,null,null,null,null,null,null,null,null,null,null,null,null,null,null,null,null,null,null,null,null,null,null,null,null,null,null,null,null,null,null,null,null,null,null,null,null,null,13,null,null,null,null,null,600,160,0,200,600,120,600]
[null,null,null,null,null,null,null,null,null,null,null,null,null,null,null,null,null,null,null,null,null,null,null,null,null,null,null,null,null,null,null,null,null,null,null,null,null,null,null,null,null,null,null,null,null,null,null,null,null,null,null,null,null,null,null,null,null,null,null,14,null,null,null,null,null,600,200,0,200,600,120,600]
[null,null,null,null,null,null,null,null,null,null,null,null,null,null,null,null,null,null,null,null,null,null,null,null,null,null,null,null,null,null,null,null,null,null,null,null,null,null,null,null,null,null,null,null,null,null,null,null,null,null,null,null,null,null,null,null,null,null,null,15,null,null,null,null,null,600,250,0,200,600,120,600]
[null,null,null,null,null,null,null,null,null,null,null,null,null,null,null,null,null,null,null,null,null,null,null,null,null,null,null,null,null,null,null,null,null,null,null,null,null,null,null,null,null,null,null,null,null,null,null,null,null,null,null,null,null,null,null,null,null,null,null,16,null,null,null,null,null,600,300,0,200,600,120,600]
[null,null,null,null,null,null,null,null,null,null,null,null,null,null,null,null,null,null,null,null,null,null,null,null,null,null,null,null,null,null,null,null,null,null,null,null,null,null,null,null,null,null,null,null,null,null,null,null,null,null,null,null,null,null,null,null,null,null,null,17,null,null,null,null,null,600,315,0,200,600,120,600]
[null,null,null,null,null,null,null,null,null,null,null,null,null,null,null,null,null,null,null,null,null,null,null,null,null,null,null,null,null,null,null,null,null,null,null,null,null,null,null,null,null,null,null,null,null,null,null,null,null,null,null,null,null,null,null,null,null,null,null,18,null,null,null,null,null,600,400,0,200,600,120,600]
[null,null,null,null,null,null,null,null,null,null,null,null,null,null,null,null,null,null,null,null,null,null,null,null,null,null,null,null,null,null,null,null,null,null,null,null,null,null,null,null,null,null,null,null,null,null,null,null,null,null,null,null,null,null,null,null,null,null,null,19,null,null,null,null,null,600,500,0,200,600,120,600]
[null,null,null,null,null,null,null,null,null,null,null,null,null,null,null,null,null,null,null,null,null,null,null,null,null,null,null,null,null,null,null,null,null,null,null,null,null,null,null,null,null,null,null,null,null,null,null,null,null,null,null,null,null,null,null,null,null,null,null,20,null,null,null,null,null,600,600,0,200,800,120,800]
[null,null,null,null,null,null,null,null,null,null,null,null,null,null,null,null,null,null,null,null,null,null,null,null,null,null,null,null,null,null,null,null,null,null,null,null,null,null,null,null,null,null,null,null,null,null,null,null,null,null,null,null,null,null,null,null,null,null,null,21,null,null,null,null,null,600,630,0,200,800,120,800]
[null,null,null,null,null,null,null,null,null,null,null,null,null,null,null,null,null,null,null,null,null,null,null,null,null,null,null,null,null,null,null,null,null,null,null,null,null,null,null,null,null,null,null,null,null,null,null,null,null,null,null,null,null,null,null,null,null,null,null,22,null,null,null,null,null,800,40,0,200,930]
[null,null,null,null,null,null,null,null,null,null,null,null,null,null,null,null,null,null,null,null,null,null,null,null,null,null,null,null,null,null,null,null,null,null,null,null,null,null,null,null,null,null,null,null,null,null,null,null,null,null,null,null,null,null,null,null,null,null,null,23,null,null,null,null,null,800,50,0,200,930]
[null,null,null,null,null,null,null,null,null,null,null,null,null,null,null,null,null,null,null,null,null,null,null,null,null,null,null,null,null,null,null,null,null,null,null,null,null,null,null,null,null,null,null,null,null,null,null,null,null,null,null,null,null,null,null,null,null,null,null,24,null,null,null,null,null,800,60,0,200,930]
[null,null,null,null,null,null,null,null,null,null,null,null,null,null,null,null,null,null,null,null,null,null,null,null,null,null,null,null,null,null,null,null,null,null,null,null,null,null,null,null,null,null,null,null,null,null,null,null,null,null,null,null,null,null,null,null,null,null,null,25,null,null,null,null,null,800,63,0,200,930,120,930]
[null,null,null,null,null,null,null,null,null,null,null,null,null,null,null,null,null,null,null,null,null,null,null,null,null,null,null,null,null,null,null,null,null,null,null,null,null,null,null,null,null,null,null,null,null,null,null,null,null,null,null,null,null,null,null,null,null,null,null,26,null,null,null,null,null,800,65,0,200,930,120,930]
[null,null,null,null,null,null,null,null,null,null,null,null,null,null,null,null,null,null,null,null,null,null,null,null,null,null,null,null,null,null,null,null,null,null,null,null,null,null,null,null,null,null,null,null,null,null,null,null,null,null,null,null,null,null,null,null,null,null,null,27,null,null,null,null,null,800,75,0,200,930,120,930]
[null,null,null,null,null,null,null,null,null,null,null,null,null,null,null,null,null,null,null,null,null,null,null,null,null,null,null,null,null,null,null,null,null,null,null,null,null,null,null,null,null,null,null,null,null,null,null,null,null,null,null,null,null,null,null,null,null,null,null,28,null,null,null,null,null,800,80,0,200,930,120,930]
[null,null,null,null,null,null,null,null,null,null,null,null,null,null,null,null,null,null,null,null,null,null,null,null,null,null,null,null,null,null,null,null,null,null,null,null,null,null,null,null,null,null,null,null,null,null,null,null,null,null,null,null,null,null,null,null,null,null,null,29,null,null,null,null,null,800,90,0,200,930,120,930]
[null,null,null,null,null,null,null,null,null,null,null,null,null,null,null,null,null,null,null,null,null,null,null,null,null,null,null,null,null,null,null,null,null,null,null,null,null,null,null,null,null,null,null,null,null,null,null,null,null,null,null,null,null,null,null,null,null,null,null,30,null,null,null,null,null,800,100,0,200,930,120,930]
[null,null,null,null,null,null,null,null,null,null,null,null,null,null,null,null,null,null,null,null,null,null,null,null,null,null,null,null,null,null,null,null,null,null,null,null,null,null,null,null,null,null,null,null,null,null,null,null,null,null,null,null,null,null,null,null,null,null,null,31,null,null,null,null,null,800,110,0,200,930,120,930]
[null,null,null,null,null,null,null,null,null,null,null,null,null,null,null,null,null,null,null,null,null,null,null,null,null,null,null,null,null,null,null,null,null,null,null,null,null,null,null,null,null,null,null,null,null,null,null,null,null,null,null,null,null,null,null,null,null,null,null,32,null,null,null,null,null,800,125,0,200,930,120,930]
[null,null,null,null,null,null,null,null,null,null,null,null,null,null,null,null,null,null,null,null,null,null,null,null,null,null,null,null,null,null,null,null,null,null,null,null,null,null,null,null,null,null,null,null,null,null,null,null,null,null,null,null,null,null,null,null,null,null,null,33,null,null,null,null,null,800,160,0,200,930,120,930]
[null,null,null,null,null,null,null,null,null,null,null,null,null,null,null,null,null,null,null,null,null,null,null,null,null,null,null,null,null,null,null,null,null,null,null,null,null,null,null,null,null,null,null,null,null,null,null,null,null,null,null,null,null,null,null,null,null,null,null,34,null,null,null,null,null,800,200,0,200,930,120,930]
[null,null,null,null,null,null,null,null,null,null,null,null,null,null,null,null,null,null,null,null,null,null,null,null,null,null,null,null,null,null,null,null,null,null,null,null,null,null,null,null,null,null,null,null,null,null,null,null,null,null,null,null,null,null,null,null,null,null,null,35,null,null,null,null,null,800,250,0,200,930,120,930]
[null,null,null,null,null,null,null,null,null,null,null,null,null,null,null,null,null,null,null,null,null,null,null,null,null,null,null,null,null,null,null,null,null,null,null,null,null,null,null,null,null,null,null,null,null,null,null,null,null,null,null,null,null,null,null,null,null,null,null,36,null,null,null,null,null,800,300,0,200,930,120,930]
[null,null,null,null,null,null,null,null,null,null,null,null,null,null,null,null,null,null,null,null,null,null,null,null,null,null,null,null,null,null,null,null,null,null,null,null,null,null,null,null,null,null,null,null,null,null,null,null,null,null,null,null,null,null,null,null,null,null,null,37,null,null,null,null,null,800,315,0,200,930,120,930]
[null,null,null,null,null,null,null,null,null,null,null,null,null,null,null,null,null,null,null,null,null,null,null,null,null,null,null,null,null,null,null,null,null,null,null,null,null,null,null,null,null,null,null,null,null,null,null,null,null,null,null,null,null,null,null,null,null,null,null,38,null,null,null,null,null,800,400,0,200,930,120,930]
[null,null,null,null,null,null,null,null,null,null,null,null,null,null,null,null,null,null,null,null,null,null,null,null,null,null,null,null,null,null,null,null,null,null,null,null,null,null,null,null,null,null,null,null,null,null,null,null,null,null,null,null,null,null,null,null,null,null,null,39,null,null,null,null,null,800,500,0,200,930,120,930]
[null,null,null,null,null,null,null,null,null,null,null,null,null,null,null,null,null,null,null,null,null,null,null,null,null,null,null,null,null,null,null,null,null,null,null,null,null,null,null,null,null,null,null,null,null,null,null,null,null,null,null,null,null,null,null,null,null,null,null,40,null,null,null,null,null,800,600,0,200,930,120,930]
[null,null,null,null,null,null,null,null,null,null,null,null,null,null,null,null,null,null,null,null,null,null,null,null,null,null,null,null,null,null,null,null,null,null,null,null,null,null,null,null,null,null,null,null,null,null,null,null,null,null,null,null,null,null,null,null,null,null,null,null,null,null,null,null,null,800,630,0,200,930,120,930]
[null,null,null,null,null,null,null,null,null,null,null,null,null,null,null,null,null,null,null,null,null,null,null,null,null,null,null,null,null,null,null,null,null,null,null,null,null,null,null,null,null,null,null,null,null,null,null,null,null,null,null,null,null,null,null,null,null,null,null,null,null,null,null,null,null,1000,40,0,200,1400]
[null,null,null,null,null,null,null,null,null,null,null,null,null,null,null,null,null,null,null,null,null,null,null,null,null,null,null,null,null,null,null,null,null,null,null,null,null,null,null,null,null,null,null,null,null,null,null,null,null,null,null,null,null,null,null,null,null,null,null,null,null,null,null,null,null,1000,50,0,200,1400]
[null,null,null,null,null,null,null,null,null,null,null,null,null,null,null,null,null,null,null,null,null,null,null,null,null,null,null,null,null,null,null,null,null,null,null,null,null,null,null,null,null,null,null,null,null,null,null,null,null,null,null,null,null,null,null,null,null,null,null,null,null,null,null,null,null,1000,60,0,200,1400]
[null,null,null,null,null,null,null,null,null,null,null,null,null,null,null,null,null,null,null,null,null,null,null,null,null,null,null,null,null,null,null,null,null,null,null,null,null,null,null,null,null,null,null,null,null,null,null,null,null,null,null,null,null,null,null,null,null,null,null,null,null,null,null,null,null,1000,63,0,200,1400,120,1400]
[null,null,null,null,null,null,null,null,null,null,null,null,null,null,null,null,null,null,null,null,null,null,null,null,null,null,null,null,null,null,null,null,null,null,null,null,null,null,null,null,null,null,null,null,null,null,null,null,null,null,null,null,null,null,null,null,null,null,null,null,null,null,null,null,null,1000,65,0,200,1400,120,1400]
[null,null,null,null,null,null,null,null,null,null,null,null,null,null,null,null,null,null,null,null,null,null,null,null,null,null,null,null,null,null,null,null,null,null,null,null,null,null,null,null,null,null,null,null,null,null,null,null,null,null,null,null,null,null,null,null,null,null,null,null,null,null,null,null,null,1000,75,0,200,1400,120,1400]
[null,null,null,null,null,null,null,null,null,null,null,null,null,null,null,null,null,null,null,null,null,null,null,null,null,null,null,null,null,null,null,null,null,null,null,null,null,null,null,null,null,null,null,null,null,null,null,null,null,null,null,null,null,null,null,null,null,null,null,null,null,null,null,null,null,1000,80,0,200,1400,120,1400]
[null,null,null,null,null,null,null,null,null,null,null,null,null,null,null,null,null,null,null,null,null,null,null,null,null,null,null,null,null,null,null,null,null,null,null,null,null,null,null,null,null,null,null,null,null,null,null,null,null,null,null,null,null,null,null,null,null,null,null,null,null,null,null,null,null,1000,90,0,200,1400,120,1400]
[null,null,null,null,null,null,null,null,null,null,null,null,null,null,null,null,null,null,null,null,null,null,null,null,null,null,null,null,null,null,null,null,null,null,null,null,null,null,null,null,null,null,null,null,null,null,null,null,null,null,null,null,null,null,null,null,null,null,null,null,null,null,null,null,null,1000,100,0,200,1400,120,1400]
[null,null,null,null,null,null,null,null,null,null,null,null,null,null,null,null,null,null,null,null,null,null,null,null,null,null,null,null,null,null,null,null,null,null,null,null,null,null,null,null,null,null,null,null,null,null,null,null,null,null,null,null,null,null,null,null,null,null,null,null,null,null,null,null,null,1000,110,0,200,1400,120,1400]
[null,null,null,null,null,null,null,null,null,null,null,null,null,null,null,null,null,null,null,null,null,null,null,null,null,null,null,null,null,null,null,null,null,null,null,null,null,null,null,null,null,null,null,null,null,null,null,null,null,null,null,null,null,null,null,null,null,null,null,null,null,null,null,null,null,1000,125,0,200,1400,120,1400]
[null,null,null,null,null,null,null,null,null,null,null,null,null,null,null,null,null,null,null,null,null,null,null,null,null,null,null,null,null,null,null,null,null,null,null,null,null,null,null,null,null,null,null,null,null,null,null,null,null,null,null,null,null,null,null,null,null,null,null,null,null,null,null,null,null,1000,160,0,200,1400,120,1400]
[null,null,null,null,null,null,null,null,null,null,null,null,null,null,null,null,null,null,null,null,null,null,null,null,null,null,null,null,null,null,null,null,null,null,null,null,null,null,null,null,null,null,null,null,null,null,null,null,null,null,null,null,null,null,null,null,null,null,null,null,null,null,null,null,null,1000,200,0,200,1400,120,1400]
[null,null,null,null,null,null,null,null,null,null,null,null,null,null,null,null,null,null,null,null,null,null,null,null,null,null,null,null,null,null,null,null,null,null,null,null,null,null,null,null,null,null,null,null,null,null,null,null,null,null,null,null,null,null,null,null,null,null,null,null,null,null,null,null,null,1000,250,0,200,1400,120,1400]
[null,null,null,null,null,null,null,null,null,null,null,null,null,null,null,null,null,null,null,null,null,null,null,null,null,null,null,null,null,null,null,null,null,null,null,null,null,null,null,null,null,null,null,null,null,null,null,null,null,null,null,null,null,null,null,null,null,null,null,null,null,null,null,null,null,1000,300,0,200,1400,120,1400]
[null,null,null,null,null,null,null,null,null,null,null,null,null,null,null,null,null,null,null,null,null,null,null,null,null,null,null,null,null,null,null,null,null,null,null,null,null,null,null,null,null,null,null,null,null,null,null,null,null,null,null,null,null,null,null,null,null,null,null,null,null,null,null,null,null,1000,315,0,200,1400,120,1400]
[null,null,null,null,null,null,null,null,null,null,null,null,null,null,null,null,null,null,null,null,null,null,null,null,null,null,null,null,null,null,null,null,null,null,null,null,null,null,null,null,null,null,null,null,null,null,null,null,null,null,null,null,null,null,null,null,null,null,null,null,null,null,null,null,null,1000,400,0,200,1400,120,1400]
[null,null,null,null,null,null,null,null,null,null,null,null,null,null,null,null,null,null,null,null,null,null,null,null,null,null,null,null,null,null,null,null,null,null,null,null,null,null,null,null,null,null,null,null,null,null,null,null,null,null,null,null,null,null,null,null,null,null,null,null,null,null,null,null,null,1000,500,0,200,1400,120,1400]
[null,null,null,null,null,null,null,null,null,null,null,null,null,null,null,null,null,null,null,null,null,null,null,null,null,null,null,null,null,null,null,null,null,null,null,null,null,null,null,null,null,null,null,null,null,null,null,null,null,null,null,null,null,null,null,null,null,null,null,null,null,null,null,null,null,1000,600,0,200,1400,120,1400]
[null,null,null,null,null,null,null,null,null,null,null,null,null,null,null,null,null,null,null,null,null,null,null,null,null,null,null,null,null,null,null,null,null,null,null,null,null,null,null,null,null,null,null,null,null,null,null,null,null,null,null,null,null,null,null,null,null,null,null,null,null,null,null,null,null,1000,630,0,200,1400,120,1400]